bitfinex/quotes_SOLUSD_20251116
["timestamp","ask_amount","ask_price","bid_price","bid_amount"]
[1763330567533,50.0,136.51,136.5,10.48882769]
[1763330567705,50.0,136.51,136.5,16.47121001]
[1763330568707,50.0,136.51,136.5,52.67935689]
[1763330569405,65.48,136.52,136.51,9.78882769]
[1763330569710,65.48,136.52,136.51,16.47121001]
[1763330569923,50.0,136.55,136.54,32.44002769]
[1763330570235,50.0,136.55,136.54,38.42241001]
[1763330570414,50.0,136.55,136.54,39.12241001]
[1763330570733,50.0,136.55,136.54,33.14002769]
[1763330571032,50.0,136.55,136.54,39.12241001]
[1763330571412,50.0,136.55,136.54,29.33358232]
[1763330572019,50.0,136.55,136.54,39.12241001]
[1763330572829,50.0,136.55,136.54,33.14002769]
[1763330573005,50.0,136.55,136.54,39.12241001]
[1763330574834,50.0,136.55,136.54,42.83773901]
[1763330575017,50.0,136.55,136.54,43.53773901]
[1763330575413,50.0,136.5,136.49,36.79292464]
[1763330575621,50.0,136.51,136.5,14.7207846]
[1763330575930,50.0,136.51,136.5,25.11849592]
[1763330576112,50.67,136.51,136.5,14.7207846]
[1763330576517,50.67,136.51,136.5,37.3719846]
[1763330576925,50.67,136.51,136.5,22.6512]
[1763330578215,50.0,136.49,136.48,10.59771132]
[1763330578629,50.0,136.49,136.48,0.2]
[1763330579458,50.67,136.49,136.48,0.2]
[1763330580123,50.67,136.49,136.48,22.8512]
[1763330580618,61.06771132,136.49,136.48,0.2]
[1763330581121,50.67,136.49,136.48,0.2]
[1763330581554,50.0,136.49,136.48,0.2]
[1763330581755,50.67,136.49,136.48,0.2]
[1763330582938,61.06771132,136.49,136.48,0.2]
[1763330583146,50.0,136.45,136.44,0.15006449]
[1763330583522,50.67,136.45,136.44,0.15006449]
[1763330584159,50.0,136.46,136.45,0.09003869]
[1763330584520,50.67,136.46,136.45,0.09003869]
[1763330585219,50.0,136.46,136.45,10.48775001]
[1763330586127,50.67,136.46,136.45,22.74125189]
[1763330586361,50.67,136.46,136.45,0.30815827]
[1763330588264,50.67,136.46,136.44,0.21888962]
[1763330588559,50.0,136.44,136.43,0.1]
[1763330588865,50.0,136.44,136.41,0.2]
[1763330588866,50.0,136.42,136.41,0.2]
[1763330589032,50.0,136.4,136.39,36.45470425]
[1763330589231,60.39771132,136.4,136.39,36.45470425]
[1763330589434,60.39771132,136.4,136.37,0.1]
[1763330589637,60.39771132,136.39,136.38,36.73993703]
[1763330589877,50.0,136.4,136.39,50.06355771]
[1763330590246,50.0,136.4,136.39,13.94089884]
[1763330590759,50.0,136.4,136.39,50.06355771]
[1763330591255,50.0,136.4,136.39,47.24037019]
[1763330592758,50.0,136.4,136.39,36.84265887]
[1763330592931,50.0,136.4,136.39,47.24037019]
[1763330593459,50.0,136.4,136.39,36.12265887]
[1763330593959,50.0,136.4,136.39,46.52037019]
[1763330594132,50.0,136.4,136.39,36.12265887]
[1763330594552,50.0,136.4,136.38,10.59771132]
[1763330595046,10.39771132,136.43,136.4,8.8370085]
[1763330595247,50.0,136.41,136.4,8.8370085]
[1763330595564,50.0,136.39,136.38,10.59771132]
[1763330595941,50.0,136.39,136.38,33.96891132]
[1763330596143,50.02017342,136.39,136.38,33.96891132]
[1763330597254,50.0,136.4,136.39,19.72704909]
[1763330597457,50.0,136.4,136.39,30.12476041]
[1763330597637,50.0,136.4,136.39,30.82476041]
[1763330599051,50.0,136.4,136.39,11.09771132]
[1763330599360,33.04891132,136.48,136.4,15.3040612]
[1763330599361,50.0,136.41,136.4,15.3040612]
[1763330599566,50.0,136.41,136.4,62.49941227]
[1763330600169,50.0,136.41,136.4,25.70177252]
[1763330600351,0.12957456,136.4,136.39,14.7354515]
[1763330600551,50.12957456,136.4,136.39,25.13316282]
[1763330600855,50.12957456,136.4,136.39,25.83316282]
[1763330601665,50.12957456,136.4,136.39,25.13316282]
[1763330601858,50.12957456,136.4,136.39,10.39771132]
[1763330602453,50.12957456,136.4,136.38,0.2]
[1763330603883,50.12957456,136.4,136.38,47.49665152]
[1763330604171,50.12957456,136.4,136.38,37.0989402]
[1763330604384,50.12957456,136.4,136.38,47.49665152]
[1763330604955,50.12957456,136.4,136.39,11.09771132]
[1763330605153,50.12957456,136.4,136.39,10.39771132]
[1763330605853,50.0,136.41,136.4,14.74453306]
[1763330606057,50.0,136.41,136.4,61.93988413]
[1763330606480,50.0,136.41,136.4,51.54217281]
[1763330607086,50.0,136.4,136.38,22.8512]
[1763330607454,50.0,136.4,136.38,0.2]
[1763330607977,50.12957456,136.4,136.38,0.2]
[1763330608163,50.12957456,136.4,136.38,10.59771132]
[1763330608359,50.12957456,136.4,136.38,0.2]
[1763330612689,50.12957456,136.4,136.39,10.39771132]
[1763330613357,50.12957456,136.4,136.39,11.05771132]
[1763330614356,50.12957456,136.4,136.39,10.39771132]
[1763330614780,50.12957456,136.4,136.39,11.05771132]
[1763330616900,50.12957456,136.4,136.38,22.8512]
[1763330617226,50.12957456,136.4,136.38,0.2]
[1763330618076,50.12957456,136.4,136.38,10.59771132]
[1763330618383,50.12957456,136.4,136.39,10.39771132]
[1763330618896,50.12957456,136.4,136.38,0.2]
[1763330620406,50.12957456,136.4,136.38,0.06206444]
[1763330621778,50.12957456,136.4,136.39,10.39771132]
[1763330621981,50.12957456,136.4,136.38,0.06206444]
[1763330621982,50.12957456,136.4,136.38,10.45977576]
[1763330622201,50.0,136.4,136.38,10.45977576]
[1763330622381,50.0,136.4,136.39,10.39771132]
[1763330622900,50.0,136.4,136.38,10.45977576]
[1763330623392,50.0,136.4,136.38,0.06206444]
[1763330623708,10.39771132,136.39,136.38,0.06206444]
[1763330624284,10.52728588,136.39,136.38,0.06206444]
[1763330624480,0.12957456,136.39,136.38,0.06206444]
[1763330627498,0.12957456,136.39,136.38,0.0194017]
[1763330627499,10.52728588,136.39,136.38,0.0194017]
[1763330627699,0.12957456,136.39,136.38,0.0194017]
[1763330628089,10.52728588,136.39,136.38,0.0194017]
[1763330628406,20.31611357,136.39,136.38,0.0194017]
[1763330630009,83.04891132,136.38,136.37,0.1]
[1763330630206,50.0,136.34,136.33,0.18007739]
[1763330632098,50.0,136.35,136.34,0.18007739]
[1763330633201,50.0,136.35,136.34,0.05050283]
[1763330634207,50.0,136.33,136.32,0.2]
[1763330635493,70.18653901,136.33,136.32,0.06288793]
[1763330635890,50.0,136.33,136.32,0.06288793]
[1763330636416,59.78882769,136.33,136.32,0.06288793]
[1763330636606,82.44002769,136.33,136.32,0.01978698]
[1763330636919,50.0,136.33,136.32,6.01592801]
[1763330637098,50.0,136.33,136.32,0.01978698]
[1763330637422,50.0,136.33,136.32,6.67592801]
[1763330637792,50.0,136.33,136.32,12.67206904]
[1763330637987,23.65614103,136.42,136.32,22.46089673]
[1763330638219,50.0,136.33,136.32,15.8047557]
[1763330638718,50.0,136.33,136.32,6.67592801]
[1763330638919,50.0,136.33,136.32,23.33098698]
[1763330639418,50.0,136.33,136.32,0.67978698]
[1763330639621,50.0,136.33,136.32,6.67592801]
[1763330639915,50.0,136.33,136.32,0.01978698]
[1763330640110,50.0,136.33,136.32,6.01592801]
[1763330640302,50.0,136.33,136.32,6.66592801]
[1763330640712,67.66,136.33,136.32,6.66592801]
[1763330641097,67.66,136.33,136.32,0.01978698]
[1763330641302,67.66,136.33,136.31,36.22765789]
[1763330641695,67.66,136.33,136.31,42.87379892]
[1763330641914,67.66,136.33,136.31,36.22765789]
[1763330642123,9.78882769,136.36,136.33,35.36187684]
[1763330642124,50.0,136.34,136.33,35.36187684]
[1763330642315,67.66,136.34,136.33,35.36187684]
[1763330642692,77.44882769,136.34,136.33,34.86187684]
[1763330643115,59.78882769,136.33,136.32,36.01083297]
[1763330643300,50.0,136.33,136.31,36.22765789]
[1763330643711,50.0,136.33,136.31,42.22379892]
[1763330644591,50.0,136.33,136.32,5.99614103]
[1763330644799,50.0,136.33,136.32,42.006974]
[1763330645594,50.0,136.33,136.32,0.65]
[1763330645794,50.0,136.33,136.32,42.006974]
[1763330646020,50.0,136.33,136.31,42.22379892]
[1763330646913,50.0,136.33,136.32,42.006974]
[1763330647932,50.0,136.33,136.32,42.656974]
[1763330648228,50.0,136.33,136.32,48.65311503]
[1763330648612,50.0,136.33,136.32,42.006974]
[1763330648826,50.0,136.33,136.32,42.656974]
[1763330649128,50.0,136.33,136.32,42.006974]
[1763330649635,50.0,136.33,136.31,36.22765789]
[1763330649813,50.0,136.33,136.32,42.006974]
[1763330650898,50.0,136.33,136.32,42.656974]
[1763330651100,50.0,136.33,136.32,48.65311503]
[1763330651321,17.66,136.34,136.32,48.65311503]
[1763330651527,17.66,136.34,136.33,6.64614103]
[1763330651528,50.0,136.34,136.33,6.64614103]
[1763330651736,50.0,136.34,136.33,0.65]
[1763330651910,50.0,136.34,136.33,6.64614103]
[1763330653419,0.67,136.34,136.31,15.11630327]
[1763330653711,50.67,136.33,136.32,5.99614103]
[1763330653902,50.0,136.33,136.32,14.81082986]
[1763330654710,66.45496872,136.33,136.32,14.81082986]
[1763330654910,66.45496872,136.33,136.32,3.91534687]
[1763330655232,50.0,136.31,136.3,5.607028]
[1763330655403,65.78496872,136.31,136.3,5.607028]
[1763330655602,66.45496872,136.31,136.3,5.607028]
[1763330656800,75.96021623,136.31,136.3,5.607028]
[1763330658320,66.45496872,136.31,136.3,5.607028]
[1763330659129,75.96021623,136.31,136.3,5.607028]
[1763330659519,59.78882769,136.28,136.27,0.09003869]
[1763330659727,9.78882769,136.27,136.26,0.09003869]
[1763330660033,10.30882769,136.27,136.26,0.09003869]
[1763330660234,16.30496872,136.27,136.26,3.869e-05]
[1763330660724,59.78882769,136.26,136.25,0.2]
[1763330660934,75.72021623,136.26,136.25,0.2]
[1763330661443,9.78882769,136.25,136.24,0.1]
[1763330661634,16.21496872,136.25,136.24,0.1]
[1763330662258,31.71635726,136.25,136.24,0.1]
[1763330662732,25.72021623,136.25,136.24,0.1]
[1763330662930,25.72021623,136.25,136.24,0.02941635]
[1763330663226,50.0,136.2,136.19,36.08998999]
[1763330666454,55.99614103,136.2,136.19,36.08998999]
[1763330666935,50.0,136.2,136.19,36.08998999]
[1763330667441,56.42614103,136.2,136.19,36.08998999]
[1763330667652,56.42614103,136.2,136.19,36.60531622]
[1763330667653,55.99614103,136.2,136.19,36.60531622]
[1763330667852,50.0,136.2,136.19,36.60531622]
[1763330668139,55.99614103,136.2,136.19,36.60531622]
[1763330669760,72.6512,136.2,136.19,36.60531622]
[1763330670366,78.64734103,136.2,136.19,36.60531622]
[1763330671267,50.0,136.19,136.17,36.19133511]
[1763330671470,50.0,136.19,136.18,0.78]
[1763330671965,50.0,136.19,136.18,0.1]
[1763330673156,50.0,136.19,136.18,6.77614103]
[1763330673465,50.0,136.19,136.18,6.09614103]
[1763330673657,50.0,136.19,136.18,0.1]
[1763330674056,50.0,136.19,136.18,6.77614103]
[1763330675876,50.0,136.19,136.18,0.1]
[1763330676576,55.99614103,136.19,136.18,0.1]
[1763330676879,50.0,136.19,136.18,0.1]
[1763330677566,50.0,136.19,136.18,0.78]
[1763330677875,50.0,136.19,136.18,6.77614103]
[1763330678382,50.0,136.19,136.18,0.78]
[1763330679461,78.64734103,136.19,136.18,0.1]
[1763330680857,72.6512,136.19,136.18,0.78]
[1763330681186,72.6512,136.19,136.18,0.1]
[1763330681572,70.1512,136.19,136.18,0.1]
[1763330683284,76.14734103,136.19,136.18,0.1]
[1763330683588,70.1512,136.19,136.18,0.78]
[1763330683763,70.1512,136.19,136.18,0.1]
[1763330683764,50.0,136.19,136.18,0.1]
[1763330684887,50.0,136.19,136.18,0.78]
[1763330686192,55.99614103,136.19,136.18,0.1]
[1763330686568,50.0,136.19,136.18,0.1]
[1763330687689,50.0,136.19,136.18,0.78]
[1763330688066,50.0,136.19,136.18,0.1]
[1763330688290,55.99614103,136.19,136.18,0.1]
[1763330689288,50.0,136.19,136.18,0.1]
[1763330689476,55.99614103,136.19,136.18,0.1]
[1763330690584,50.0,136.19,136.18,0.1]
[1763330691669,50.0,136.19,136.18,0.78]
[1763330691871,50.0,136.19,136.18,0.1]
[1763330692171,50.0,136.19,136.18,0.78]
[1763330695896,50.0,136.19,136.18,6.77614103]
[1763330696095,5.99614103,136.23,136.18,6.77614103]
[1763330696299,50.0,136.19,136.18,6.09614103]
[1763330696785,50.0,136.19,136.18,6.77614103]
[1763330697572,50.0,136.17,136.16,37.51607478]
[1763330697802,59.78882769,136.25,136.24,27.35980998]
[1763330698374,59.78882769,136.25,136.24,14.44862729]
[1763330698998,70.25390242,136.25,136.24,14.44862729]
[1763330699197,50.0,136.19,136.18,0.68]
[1763330699584,50.0,136.17,136.16,47.30114951]
[1763330699806,50.0,136.15,136.14,86.18643207]
[1763330699987,50.0,136.15,136.14,97.3315068]
[1763330700789,50.0,136.15,136.14,86.18643207]
[1763330700989,60.46507473,136.15,136.14,86.18643207]
[1763330701295,60.46507473,136.15,136.1,0.78]
[1763330701296,10.46507473,136.15,136.12,86.21682128]
[1763330701495,22.6512,136.14,136.12,86.21682128]
[1763330701704,60.46507473,136.13,136.12,86.21682128]
[1763330702095,50.0,136.13,136.12,86.21682128]
[1763330702289,50.0,136.13,136.1,0.78]
[1763330702290,22.6512,136.16,136.11,16.65310076]
[1763330702590,50.0,136.12,136.11,10.46507473]
[1763330703222,50.0,136.12,136.11,0.68]
[1763330703511,10.46507473,136.15,136.12,73.17135561]
[1763330704392,10.46507473,136.14,136.12,73.17135561]
[1763330704912,50.0,136.16,136.15,56.00068918]
[1763330705215,50.0,136.16,136.15,66.46576391]
[1763330705406,50.0,136.16,136.15,67.14576391]
[1763330705590,50.0,136.16,136.15,56.68068918]
[1763330706210,50.0,136.17,136.16,86.83607478]
[1763330706988,72.6512,136.17,136.16,86.83607478]
[1763330707188,82.44002769,136.17,136.16,86.83607478]
[1763330707410,92.90510242,136.17,136.16,86.83607478]
[1763330707716,92.90510242,136.17,136.16,40.77246094]
[1763330708213,9.78882769,136.16,136.12,86.21682128]
[1763330708514,50.0,136.11,136.1,36.47949549]
[1763330708878,50.0,136.11,136.1,37.15949549]
[1763330709083,50.0,136.11,136.1,36.47949549]
[1763330712716,60.46507473,136.12,136.11,86.36508425]
[1763330712911,50.0,136.12,136.11,86.36508425]
[1763330714121,50.0,136.12,136.11,36.36508426]
[1763330717129,60.46507473,136.12,136.11,36.36508426]
[1763330718318,60.46507473,136.12,136.11,36.72522062]
[1763330719135,83.11627473,136.12,136.11,36.72522062]
[1763330719434,72.6512,136.12,136.11,36.72522062]
[1763330719840,72.6512,136.12,136.11,37.40522062]
[1763330720128,72.6512,136.12,136.11,36.72522062]
[1763330721031,50.0,136.12,136.11,47.87029535]
[1763330721909,22.15,136.27,136.11,47.87029535]
[1763330722147,50.0,136.12,136.11,36.72522062]
[1763330722333,50.0,136.12,136.11,46.51404831]
[1763330722513,50.0,136.12,136.11,47.19404831]
[1763330722719,28.36864569,136.26,136.12,9.78882769]
[1763330723027,50.0,136.13,136.11,36.66427324]
[1763330723330,50.0,136.13,136.12,11.14507473]
[1763330724842,50.0,136.13,136.12,20.93390242]
[1763330725530,50.0,136.14,136.13,9.78882769]
[1763330725722,50.0,136.14,136.13,20.93390242]
[1763330726131,50.0,136.14,136.13,0.68]
[1763330726432,50.0,136.14,136.13,11.14507473]
[1763330726930,50.0,136.14,136.13,0.68]
[1763330727128,50.0,136.14,136.13,11.14507473]
[1763330727629,50.0,136.14,136.13,10.46507473]
[1763330727835,50.0,136.14,136.13,11.14507473]
[1763330728433,50.0,136.14,136.13,0.68]
[1763330728634,50.0,136.14,136.13,11.14507473]
[1763330729657,22.6512,136.2,136.13,11.14507473]
[1763330729843,9.78882769,136.23,136.13,9.78882769]
[1763330729844,50.0,136.14,136.13,9.78882769]
[1763330730211,9.07457049,136.26,136.13,9.78882769]
[1763330730212,22.6512,136.23,136.13,9.78882769]
[1763330730409,50.0,136.14,136.13,9.78882769]
[1763330730924,50.0,136.14,136.13,20.91390242]
[1763330734953,50.0,136.15,136.14,9.78882769]
[1763330735242,50.0,136.15,136.14,20.91390242]
[1763330735814,33.11627473,136.24,136.14,20.91390242]
[1763330736034,50.0,136.15,136.14,9.78882769]
[1763330736238,50.0,136.16,136.15,32.44002769]
[1763330736431,50.0,136.16,136.15,33.10002769]
[1763330736836,0.2,136.28,136.15,33.10002769]
[1763330737154,50.0,136.16,136.15,32.44002769]
[1763330737345,50.0,136.16,136.15,53.37017715]
[1763330737549,50.0,136.19,136.18,22.6512]
[1763330737727,50.0,136.19,136.18,43.58134946]
[1763330737922,50.0,136.19,136.18,33.11627473]
[1763330738125,50.0,136.19,136.18,33.77627473]
[1763330738628,50.0,136.19,136.18,43.56510242]
[1763330739431,50.0,136.23,136.22,22.6512]
[1763330739747,50.0,136.23,136.22,33.11627473]
[1763330740048,50.0,136.23,136.22,11.12507473]
[1763330743022,50.0,136.23,136.22,10.46507473]
[1763330743348,50.0,136.24,136.23,39.54593606]
[1763330743550,60.46507473,136.24,136.23,39.54593606]
[1763330743925,50.0,136.2,136.19,10.46507473]
[1763330744660,50.0,136.2,136.19,11.12507473]
[1763330745260,50.0,136.12,136.11,36.66427324]
[1763330745455,50.0,136.12,136.11,56.91817566]
[1763330745934,50.0,136.12,136.11,57.57817566]
[1763330747757,50.0,136.16,136.15,32.44002769]
[1763330747933,50.0,136.16,136.15,42.90510242]
[1763330748357,50.0,136.16,136.15,23.3112]
[1763330748566,50.0,136.15,136.14,22.6512]
[1763330749061,50.0,136.15,136.14,23.3112]
[1763330749557,50.0,136.17,136.16,22.6512]
[1763330749730,50.0,136.17,136.16,33.11627473]
[1763330749931,50.0,136.15,136.14,22.6512]
[1763330750257,50.0,136.15,136.14,33.77627473]
[1763330753764,50.0,136.16,136.15,51.58049751]
[1763330753937,50.0,136.16,136.15,62.70557224]
[1763330755044,50.0,136.17,136.16,14.706321]
[1763330755248,50.0,136.17,136.16,25.83139573]
[1763330755961,50.0,136.18,136.17,36.98887518]
[1763330756153,50.0,136.18,136.17,37.64887518]
[1763330756531,50.0,136.18,136.17,48.11394991]
[1763330756936,50.0,136.18,136.17,60.30007518]
[1763330757136,50.0,136.18,136.17,70.76514991]
[1763330759358,50.0,136.18,136.17,48.11394991]
[1763330760247,50.0,136.23,136.22,39.55694846]
[1763330760450,70.25390242,136.23,136.22,39.55694846]
[1763330760769,65.80235544,136.23,136.22,30.33265397]
[1763330761440,56.01352775,136.23,136.22,30.33265397]
[1763330762044,50.0,136.18,136.17,36.98887518]
[1763330762353,50.0,136.18,136.17,43.00240293]
[1763330762554,9.78882769,136.25,136.17,43.00240293]
[1763330762555,6.01352775,136.25,136.17,43.00240293]
[1763330762854,50.0,136.18,136.17,36.98887518]
[1763330763348,50.0,136.18,136.17,37.70887518]
[1763330763562,50.0,136.18,136.17,36.98887518]
[1763330763886,50.0,136.18,136.17,43.00240293]
[1763330764262,50.0,136.18,136.17,43.72240293]
[1763330764659,50.0,136.18,136.17,43.00240293]
[1763330764858,0.08461898,136.28,136.17,43.72240293]
[1763330765084,50.0,136.18,136.17,59.64007518]
[1763330765259,50.0,136.18,136.17,65.65360293]
[1763330765461,50.0,136.18,136.17,66.37360293]
[1763330765960,50.0,136.21,136.2,32.44002769]
[1763330766288,50.0,136.22,136.21,0.72]
[1763330766479,50.0,136.25,136.24,22.6512]
[1763330766679,50.0,136.25,136.24,34.6782555]
[1763330766884,50.0,136.25,136.24,35.3982555]
[1763330767967,50.0,136.25,136.24,29.38472775]
[1763330768287,50.0,136.25,136.24,28.66472775]
[1763330768477,0.08461898,136.28,136.21,0.72]
[1763330768478,50.0,136.22,136.21,0.72]
[1763330768662,50.0,136.23,136.22,0.72]
[1763330768872,50.0,136.23,136.22,29.38472775]
[1763330769070,50.0,136.26,136.25,22.6512]
[1763330769393,50.0,136.26,136.25,29.38472775]
[1763330770264,50.0,136.26,136.25,6.01352775]
[1763330770602,50.0,136.29,136.28,6.01352775]
[1763330770894,50.0,136.25,136.24,6.01352775]
[1763330771070,50.0,136.25,136.24,12.0270555]
[1763330771475,50.0,136.25,136.24,12.7470555]
[1763330771908,50.0,136.23,136.22,0.72]
[1763330772068,50.0,136.23,136.22,6.73352775]
[1763330773075,50.0,136.23,136.22,22.53588319]
[1763330773595,50.0,136.26,136.25,22.6512]
[1763330773983,50.0,136.26,136.25,29.38472775]
[1763330775478,50.0,136.26,136.25,28.66472775]
[1763330775902,50.0,136.26,136.25,29.37472775]
[1763330778199,50.0,136.3,136.29,22.6512]
[1763330778390,50.0,136.3,136.29,28.66472775]
[1763330778596,50.0,136.3,136.29,29.37472775]
[1763330781810,50.0,136.3,136.29,39.16355544]
[1763330784416,50.0,136.3,136.29,38.45355544]
[1763330784599,50.0,136.3,136.29,39.16355544]
[1763330786813,50.0,136.3,136.29,45.74383954]
[1763330787117,50.0,136.27,136.26,32.44002769]
[1763330787296,50.0,136.28,136.27,9.78882769]
[1763330787613,50.0,136.28,136.27,35.66879006]
[1763330787916,50.0,136.28,136.27,25.87996237]
[1763330788885,0.2,136.33,136.27,45.74383954]
[1763330789088,50.0,136.28,136.27,32.44002769]
[1763330789513,50.0,136.28,136.27,33.15002769]
[1763330790100,50.0,136.28,136.27,35.66879006]
[1763330790299,50.0,136.28,136.27,34.95879006]
[1763330791216,50.0,136.28,136.27,35.67879006]
[1763330791411,50.0,136.28,136.27,38.19755243]
[1763330791613,50.0,136.29,136.28,9.78882769]
[1763330791811,50.0,136.29,136.28,2.51876237]
[1763330792008,50.0,136.29,136.28,3.23876237]
[1763330792198,50.0,136.32,136.31,22.6512]
[1763330792399,50.0,136.32,136.31,25.16996237]
[1763330792598,50.0,136.32,136.31,25.88996237]
[1763330792798,50.0,136.32,136.31,3.23876237]
[1763330793013,50.0,136.3,136.29,20.58387717]
[1763330793225,50.0,136.3,136.29,22.38263954]
[1763330793611,50.0,136.3,136.29,23.10263954]
[1763330794525,0.2,136.33,136.29,23.10263954]
[1763330794819,50.0,136.3,136.29,19.86387717]
[1763330795023,0.2,136.33,136.29,19.86387717]
[1763330795320,50.0,136.33,136.32,32.44002769]
[1763330795700,50.0,136.33,136.32,33.16002769]
[1763330796017,0.2,136.39,136.32,35.67879006]
[1763330796219,50.0,136.33,136.32,32.44002769]
[1763330796422,0.2,136.39,136.29,10.07504948]
[1763330796423,50.0,136.3,136.29,1.99999999]
[1763330796604,0.2,136.39,136.32,32.44002769]
[1763330796605,50.0,136.33,136.32,32.44002769]
[1763330796811,50.0,136.37,136.36,32.44002769]
[1763330797225,50.0,136.37,136.36,33.16002769]
[1763330797414,50.0,136.37,136.36,25.88996237]
[1763330798510,50.0,136.37,136.36,28.40872474]
[1763330799498,50.0,136.37,136.36,25.16996237]
[1763330799916,50.0,136.37,136.36,22.6512]
[1763330800225,50.0,136.34,136.33,9.78882769]
[1763330800421,50.0,136.34,136.33,10.50882769]
[1763330801429,50.0,136.34,136.33,13.02759006]
[1763330801609,0.2,136.39,136.33,13.02759006]
[1763330801810,50.2,136.39,136.38,2.51876237]
[1763330802431,50.49,136.39,136.38,2.51876237]
[1763330803002,50.49,136.39,136.37,2.51876237]
[1763330803214,50.0,136.29,136.28,10.50882769]
[1763330803417,50.0,136.29,136.28,23.10263954]
[1763330803925,0.29,136.35,136.31,22.6512]
[1763330804228,50.0,136.32,136.31,22.6512]
[1763330804827,50.0,136.32,136.29,10.07504948]
[1763330804828,50.0,136.3,136.28,10.50882769]
[1763330805025,50.0,136.26,136.25,24.53950762]
[1763330805226,50.0,136.29,136.28,32.44002769]
[1763330805528,50.0,136.29,136.28,38.43750648]
[1763330805725,50.0,136.29,136.28,39.15750648]
[1763330806232,50.0,136.3,136.29,9.78882769]
[1763330806400,50.0,136.3,136.29,22.50378527]
[1763330806927,50.0,136.3,136.29,16.50630648]
[1763330807111,50.0,136.28,136.27,10.50882769]
[1763330807316,50.0,136.28,136.27,15.78630648]
[1763330807712,50.0,136.28,136.27,16.50630648]
[1763330808104,0.29,136.34,136.27,16.50630648]
[1763330808435,50.0,136.28,136.27,9.78882769]
[1763330808738,50.0,136.31,136.3,22.6512]
[1763330809632,50.0,136.31,136.3,28.64867879]
[1763330810130,50.29,136.31,136.3,5.99747879]
[1763330810430,50.0,136.31,136.3,5.99747879]
[1763330810814,50.0,136.28,136.27,9.78882769]
[1763330811010,50.0,136.28,136.27,15.78630648]
[1763330811213,50.0,136.28,136.27,39.15750648]
[1763330813429,50.0,136.29,136.28,9.78882769]
[1763330813631,50.0,136.29,136.28,5.99747879]
[1763330815136,50.0,136.29,136.28,16.50630648]
[1763330816436,0.29,136.34,136.28,16.50630648]
[1763330816742,50.0,136.29,136.28,10.50882769]
[1763330816938,50.0,136.3,136.29,10.50882769]
[1763330817133,50.0,136.3,136.29,9.78882769]
[1763330817345,50.0,136.28,136.27,33.16002769]
[1763330817513,50.0,136.29,136.28,9.78882769]
[1763330817715,50.0,136.26,136.25,24.94303712]
[1763330817918,50.0,136.29,136.28,32.44002769]
[1763330818116,50.0,136.29,136.28,38.43750648]
[1763330818334,0.29,136.33,136.28,39.15750648]
[1763330818614,50.0,136.29,136.28,33.16002769]
[1763330819639,50.0,136.29,136.28,39.15750648]
[1763330821042,50.0,136.29,136.28,5.99747879]
[1763330822318,50.0,136.29,136.27,22.6512]
[1763330822519,50.0,136.29,136.28,5.99747879]
[1763330822927,50.0,136.29,136.28,10.44415146]
[1763330823264,50.0,136.23,136.22,0.79464783]
[1763330823544,50.0,136.23,136.22,33.23467552]
[1763330823715,50.0,136.23,136.22,33.94467552]
[1763330824446,50.0,136.23,136.22,44.38882698]
[1763330825148,50.0,136.24,136.23,0.12005159]
[1763330825520,50.0,136.24,136.23,10.56420305]
[1763330825756,50.0,136.24,136.23,33.92540305]
[1763330826927,50.0,136.24,136.23,27.42027681]
[1763330827249,50.0,136.24,136.23,27.30022522]
[1763330827424,50.0,136.24,136.23,37.08905291]
[1763330827837,50.0,136.25,136.24,9.78882769]
[1763330828020,50.0,136.25,136.24,14.43785291]